bitfinex/quotes_SOLUSD_20240822
["timestamp","ask_amount","ask_price","bid_price","bid_amount"]
[1724327267470,15.8165,144.32,144.29,45.0]
[1724327267666,15.8165,144.32,144.28,51.9309]
[1724327269405,15.8165,144.32,144.25,30.41]
[1724327269589,10.41,144.31,144.24,15.13247814]
[1724327269772,10.41,144.31,144.24,6.9325]
[1724327271100,10.41,144.31,144.25,1.38622502]
[1724327271670,10.41,144.31,144.25,21.38622502]
[1724327272487,10.41,144.31,144.25,48.31852502]
[1724327272692,10.41,144.31,144.26,45.0]
[1724327272866,10.41,144.31,144.27,1.38604916]
[1724327274389,10.41,144.31,144.26,45.0]
[1724327274677,10.41,144.31,144.27,1.38609486]
[1724327275501,5.0,144.3,144.27,1.38609486]
[1724327276004,5.0,144.3,144.27,8.31709486]
[1724327278299,5.0,144.3,144.28,45.0]
[1724327278498,5.0,144.3,144.29,1.38585459]
[1724327280289,5.0,144.3,144.28,45.0]
[1724327280478,5.0,144.3,144.29,21.38585867]
[1724327280678,5.0,144.3,144.29,66.38585867]
[1724327280878,5.0,144.3,144.29,46.38585867]
[1724327281099,5.0,144.3,144.28,45.0]
[1724327281409,5.0,144.3,144.28,51.9309]
[1724327281696,5.0,144.3,144.28,53.31670695]
[1724327282094,5.0,144.3,144.28,51.9309]
[1724327283308,5.0,144.3,144.29,6.9304]
[1724327283619,5.0,144.3,144.29,51.9304]
[1724327283909,5.0,144.3,144.29,53.31620551]
[1724327284107,5.0,144.3,144.29,71.9304]
[1724327284620,5.0,144.3,144.29,92.18138]
[1724327287388,16.5862,144.4,144.35,6.9272]
[1724327287707,16.5862,144.4,144.36,66.38519385]
[1724327288782,26.9962,144.4,144.35,6.9272]
[1724327289082,26.9962,144.4,144.33,6.9281]
[1724327289285,77.81114131,144.38,144.34,65.0]
[1724327289803,77.81114131,144.38,144.34,66.38535061]
[1724327290307,67.40114131,144.38,144.34,91.928]
[1724327290513,67.40114131,144.38,144.34,71.928]
[1724327290714,67.40114131,144.38,144.35,1.38522892]
[1724327290885,67.40114131,144.38,144.36,21.38515193]
[1724327291086,67.40114131,144.38,144.37,65.0]
[1724327291285,67.40114131,144.38,144.37,71.9266]
[1724327292401,67.40114131,144.38,144.37,73.3117188]
[1724327293803,67.40114131,144.38,144.37,71.9266]
[1724327293982,67.40114131,144.38,144.37,83.9726803]
[1724327294606,67.40114131,144.38,144.37,73.5626803]
[1724327294787,67.40114131,144.38,144.37,72.17758]
[1724327294993,67.40114131,144.38,144.37,71.9266]
[1724327297291,67.40114131,144.38,144.37,73.31161641]
[1724327297496,67.40114131,144.38,144.37,73.56259641]
[1724327300313,71.35876691,144.44,144.43,6.9237]
[1724327300609,71.35876691,144.44,144.43,73.30826432]
[1724327300998,71.35876691,144.44,144.43,65.0]
[1724327301318,71.35876691,144.44,144.43,20.0]
[1724327301488,71.35876691,144.44,144.42,20.0]
[1724327302308,71.35876691,144.44,144.4,6.925]
[1724327302499,71.35876691,144.44,144.41,20.0]
[1724327304416,71.35876691,144.44,144.42,46.38473693]
[1724327304708,71.35876691,144.44,144.43,21.38461379]
[1724327304906,71.35876691,144.44,144.43,20.0]
[1724327305807,71.35876691,144.44,144.43,21.38461394]
[1724327306706,71.35876691,144.44,144.43,73.30831394]
[1724327307914,71.35876691,144.44,144.43,73.55929394]
[1724327308794,0.8483539,144.48,144.43,73.55929394]
[1724327308795,0.8483539,144.48,144.47,26.9218]
[1724327309107,0.8483539,144.48,144.47,77.17278]
[1724327309406,0.8483539,144.48,144.47,76.9218]
[1724327309587,0.8483539,144.48,144.47,77.17278]
[1724327309914,0.8483539,144.48,144.47,72.97278]
[1724327310203,0.8483539,144.48,144.47,117.97278]
[1724327311398,0.8483539,144.48,144.47,126.85017834]
[1724327312902,0.8483539,144.48,144.47,128.23405615]
[1724327313289,75.31639251,144.49,144.47,128.23405615]
[1724327313290,75.31639251,144.49,144.48,6.9213]
[1724327313489,1.23752,144.5,144.49,20.0]
[1724327313691,1.23752,144.5,144.49,119.35539956]
[1724327314423,1.23752,144.5,144.49,117.97178]
[1724327314630,1.23752,144.5,144.49,119.10449584]
[1724327314929,1.23752,144.5,144.49,21.38369996]
[1724327315104,1.23752,144.5,144.48,30.0]
[1724327315810,1.23752,144.5,144.49,1.38397567]
[1724327316311,1.23752,144.5,144.47,20.0]
[1724327316914,1.23752,144.5,144.48,1.38397677]
[1724327317296,1.23752,144.5,144.48,21.38397677]
[1724327318105,1.23752,144.5,144.49,1.38397998]
[1724327318617,1.23752,144.5,144.49,46.38397998]
[1724327318808,1.23752,144.5,144.49,66.38397998]
[1724327319005,1.23752,144.5,144.48,20.0]
[1724327319196,1.23752,144.5,144.49,1.38421624]
[1724327319510,1.23752,144.5,144.48,20.0]
[1724327319814,1.23752,144.5,144.49,21.38392064]
[1724327320008,1.23752,144.5,144.49,48.30472064]
[1724327320395,1.23752,144.5,144.49,93.30472064]
[1724327320819,1.23752,144.5,144.49,91.9208]
[1724327320996,1.23752,144.5,144.49,85.0]
[1724327321892,1.23752,144.5,144.49,65.0]
[1724327322717,1.23752,144.5,144.49,91.9208]
[1724327323093,1.23752,144.5,144.49,93.30453265]
[1724327324319,1.23752,144.5,144.49,92.17178]
[1724327324819,1.23752,144.5,144.49,91.9208]
[1724327325313,1.23752,144.5,144.49,92.17178]
[1724327325500,1.23752,144.5,144.49,92.04629]
[1724327325699,1.23752,144.5,144.49,92.17178]
[1724327327122,1.23752,144.5,144.49,101.81971723]
[1724327327803,1.23752,144.5,144.49,113.56507989]
[1724327328021,79.27401812,144.54,144.53,26.9189]
[1724327328211,79.27401812,144.54,144.53,91.9189]
[1724327328406,79.27401812,144.54,144.53,92.16988]
[1724327329000,79.27401812,144.54,144.53,101.81781723]
[1724327329205,79.27401812,144.54,144.53,112.17960585]
[1724327330217,83.23164372,144.59,144.58,26.9165]
[1724327330528,83.23164372,144.59,144.58,92.04199]
[1724327330907,83.23164372,144.59,144.58,92.16748]
[1724327331843,83.23164372,144.59,144.58,91.9165]
[1724327333008,83.23164372,144.59,144.58,92.16748]
[1724327337519,83.23164372,144.59,144.58,92.04199]
[1724327337719,83.23164372,144.59,144.58,91.9165]
[1724327338322,83.23164372,144.59,144.58,92.16748]
[1724327338629,83.23164372,144.59,144.58,91.9165]
[1724327339532,83.23164372,144.59,144.58,92.16748]
[1724327339918,83.23164372,144.59,144.58,93.55042176]
[1724327340933,83.23164372,144.59,144.58,123.55042176]
[1724327341239,83.23164372,144.59,144.58,123.55042267]
[1724327342327,83.23164372,144.59,144.58,122.16748]
[1724327342717,83.23164372,144.59,144.58,123.5503333]
[1724327343645,83.23164372,144.59,144.58,123.55033434]
[1724327344136,83.23164372,144.59,144.58,162.99720585]
[1724327344541,83.23164372,144.59,144.58,142.17720585]
[1724327346826,83.23164372,144.59,144.58,122.16748]
[1724327347516,83.23164372,144.59,144.58,102.04199]
[1724327347818,83.23164372,144.59,144.58,56.9165]
[1724327348026,83.23164372,144.59,144.58,50.0]
[1724327348418,83.23164372,144.59,144.58,20.0]
[1724327351146,83.23164372,144.59,144.58,20.25098]
[1724327351313,83.23164372,144.59,144.58,85.25098]
[1724327352414,83.23164372,144.59,144.58,85.0]
[1724327352851,83.23164372,144.59,144.58,40.0]
[1724327358352,83.23164372,144.59,144.54,37.93971698]
[1724327358523,83.23164372,144.59,144.54,30.36178862]
[1724327359038,25.73,144.56,144.48,27.15715093]
[1724327359251,15.3564,144.56,144.49,1.73166696]
[1724327359460,25.73,144.53,144.47,1.73166696]
[1724327359645,25.73,144.53,144.48,1.73166696]
[1724327359851,6.2813,144.52,144.47,1.73166696]
[1724327360248,15.3564,144.51,144.46,3.1157303]
[1724327360537,15.3564,144.51,144.46,1.38406334]
[1724327360968,15.3564,144.51,144.45,1.73166696]
[1724327361142,15.3564,144.51,144.46,1.38421151]
[1724327363080,41.0864,144.51,144.45,1.73166696]
[1724327363375,15.3564,144.51,144.46,21.38421036]
[1724327363670,15.3564,144.51,144.47,20.0]
[1724327365969,15.3564,144.51,144.46,20.0]
[1724327366953,25.73,144.5,144.43,6.9234]
[1724327367149,25.73,144.5,144.43,8.65552331]
[1724327368180,25.73,144.5,144.44,46.9231]
[1724327368494,15.3564,144.51,144.44,91.9231]
[1724327369449,22.57130623,144.51,144.44,91.9231]
[1724327372280,22.57130623,144.51,144.46,20.0]
[1724327372479,15.3564,144.51,144.46,20.0]
[1724327372774,15.3564,144.51,144.46,26.9219]
[1724327373775,15.3564,144.51,144.46,20.0]
[1724327373985,15.3564,144.51,144.46,40.0]
[1724327374185,15.3564,144.51,144.46,20.0]
[1724327374391,15.3564,144.51,144.46,40.0]
[1724327374565,15.3564,144.51,144.46,20.0]
[1724327374963,15.3564,144.51,144.46,40.0]
[1724327375181,15.3564,144.51,144.46,20.0]
[1724327375487,15.3564,144.51,144.46,40.0]
[1724327375678,15.3564,144.51,144.46,20.0]
[1724327376063,15.3564,144.51,144.45,6.9227]
[1724327376265,41.0864,144.51,144.46,20.0]
[1724327376761,41.0864,144.51,144.45,20.0]
[1724327376957,41.0864,144.51,144.46,1.38426195]
[1724327377182,41.0864,144.51,144.45,46.9227]
[1724327377858,41.0864,144.51,144.45,20.0]
[1724327378563,10.32,144.49,144.45,20.0]
[1724327378987,10.32,144.49,144.44,20.0]
[1724327379364,10.32,144.49,144.44,26.9232]
[1724327381286,10.32,144.49,144.44,20.0]
[1724327381695,10.32,144.49,144.44,26.9232]
[1724327381866,10.32,144.49,144.44,21.38441967]
[1724327382192,10.32,144.49,144.44,20.0]
[1724327382386,10.32,144.47,144.44,20.0]
[1724327382892,10.32,144.49,144.44,21.38442763]
[1724327383060,15.3564,144.51,144.44,28.30762763]
[1724327383259,10.32,144.5,144.44,28.30762763]
[1724327383672,10.32,144.5,144.44,26.9232]
[1724327383873,10.32,144.5,144.45,1.3843617]
[1724327384089,10.32,144.5,144.45,28.3070617]
[1724327384274,10.32,144.5,144.46,1.3842147]
[1724327384476,10.32,144.5,144.45,26.9227]
[1724327385901,10.32,144.5,144.46,1.38418846]
[1724327386477,22.57350232,144.51,144.46,1.38418846]
[1724327386675,22.57350232,144.51,144.45,26.9227]
[1724327388196,22.57350232,144.51,144.46,28.30639069]
[1724327388501,15.3564,144.51,144.46,28.30639069]
[1724327388684,15.3564,144.51,144.47,20.0]
[1724327390013,15.3564,144.51,144.48,8.30495645]
[1724327390292,15.3564,144.51,144.49,21.38398454]
[1724327390507,15.3564,144.51,144.49,28.30478454]
[1724327392005,25.78,144.54,144.49,48.30478454]
[1724327392174,15.9581,144.55,144.5,1.38373917]
[1724327392384,15.9581,144.55,144.49,40.0]
[1724327392577,15.9581,144.55,144.51,6.9195]
[1724327392776,15.9581,144.55,144.52,20.0]
[1724327393376,15.9581,144.55,144.52,28.30290586]
[1724327393677,15.9581,144.55,144.52,26.9192]
[1724327394215,6.486,144.56,144.52,26.9192]
[1724327394216,7.22186724,144.57,144.55,6.9179]
[1724327394401,83.23164372,144.59,144.56,20.0]
[1724327394708,83.23164372,144.59,144.56,26.9171]
[1724327396308,83.23164372,144.59,144.56,20.0]
[1724327399008,83.23164372,144.59,144.51,26.75975003]
[1724327399217,116.23530921,144.59,144.51,26.75975003]
[1724327399400,90.45530921,144.59,144.53,20.0]
[1724327399605,83.23164372,144.59,144.53,20.0]
[1724327400290,83.23164372,144.59,144.54,20.0]
[1724327400815,83.23164372,144.59,144.52,21.73124111]
[1724327401310,109.01164372,144.59,144.52,20.0]
[1724327401514,109.01164372,144.59,144.52,21.7312319]
[1724327401687,109.01164372,144.59,144.53,6.9185]
[1724327401887,109.01164372,144.59,144.54,20.0]
[1724327402316,109.01164372,144.59,144.54,26.9184]
[1724327402916,109.01164372,144.59,144.51,26.75975003]
[1724327402917,109.01164372,144.59,144.51,6.75975003]
[1724327403115,25.78,144.57,144.52,1.73125131]
[1724327403416,25.78,144.57,144.52,6.9194]
[1724327403792,21.4365,144.58,144.52,6.9194]
[1724327403992,47.2165,144.58,144.52,8.65065955]
[1724327404202,47.2165,144.58,144.53,20.0]
[1724327404430,47.2165,144.58,144.53,21.73125955]
[1724327405090,21.4365,144.58,144.53,30.03345466]
[1724327405430,21.4365,144.58,144.53,21.38369511]
[1724327405598,21.4365,144.58,144.54,20.0]
[1724327405800,21.4365,144.58,144.54,26.9183]
[1724327406805,21.4365,144.58,144.53,20.0]
[1724327406806,21.4365,144.58,144.53,26.9189]
[1724327407004,21.4365,144.58,144.54,20.0]
[1724327407414,21.4365,144.58,144.54,26.9183]
[1724327407714,21.4365,144.58,144.54,6.9183]
[1724327408037,21.4365,144.58,144.54,26.9183]
[1724327408317,31.7365,144.58,144.53,26.9188]
[1724327409717,31.7365,144.58,144.54,6.9184]
[1724327409925,21.4365,144.58,144.54,6.9184]
[1724327412218,31.7365,144.58,144.54,6.9184]
[1724327413122,31.7365,144.58,144.53,20.0]
[1724327413311,21.4365,144.58,144.51,21.73124143]
[1724327413613,10.3,144.57,144.52,6.9192]
[1724327413818,10.3,144.57,144.53,20.0]
[1724327414119,38.95410161,144.58,144.53,26.9189]
[1724327414306,31.7365,144.58,144.53,26.9188]
[1724327415513,21.4365,144.58,144.54,8.30197817]
[1724327416709,21.4365,144.58,144.56,6.9175]
[1724327417011,15.0254,144.58,144.56,6.9175]
[1724327417213,83.23164372,144.59,144.57,6.917]
[1724327418010,83.23164372,144.59,144.58,20.0]
[1724327418798,83.23164372,144.59,144.57,20.0]
[1724327418999,83.23164372,144.59,144.53,20.0]
[1724327419708,83.23164372,144.59,144.53,21.73115853]
[1724327419903,83.23164372,144.59,144.53,20.0]
[1724327420725,83.23164372,144.59,144.54,6.9181]
[1724327420911,83.23164372,144.59,144.55,20.0]
[1724327422007,83.23164372,144.59,144.54,6.9183]
[1724327422209,83.23164372,144.59,144.55,20.0]
[1724327422612,10.3,144.58,144.52,20.0]
[1724327422825,16.4688,144.56,144.51,1.73124185]
[1724327423724,16.4688,144.56,144.5,20.0]
[1724327424204,16.4688,144.56,144.51,20.0]
[1724327424502,16.4688,144.56,144.51,21.73134288]
[1724327427428,16.4688,144.56,144.52,1.73134288]
[1724327428324,16.4688,144.56,144.5,6.9204]
[1724327428905,10.3,144.54,144.5,6.9204]
[1724327429826,10.3,144.54,144.49,6.9207]
[1724327430009,10.3,144.54,144.5,1.73169226]
[1724327430333,10.3,144.54,144.49,6.9207]
[1724327430543,10.3,144.54,144.5,1.73169205]
[1724327430711,10.3,144.54,144.49,6.9207]
[1724327430908,10.3,144.54,144.5,1.73169305]
[1724327431228,10.3,144.54,144.49,26.9207]
[1724327431416,10.3,144.54,144.5,21.73169337]
[1724327431730,10.3,144.54,144.5,20.0]
[1724327432132,6.1688,144.56,144.5,26.9202]
[1724327432333,10.3,144.55,144.51,1.73169241]
[1724327432626,10.3,144.55,144.5,26.9202]
[1724327432832,6.1688,144.56,144.51,3.11557088]
[1724327433009,6.1688,144.56,144.52,10.0346066]
[1724327433211,6.1688,144.56,144.53,21.7316922]
[1724327433424,6.1688,144.56,144.53,20.0]
[1724327434028,6.1688,144.56,144.54,1.7314522]
[1724327434221,6.1688,144.56,144.53,26.9189]
[1724327434436,6.1688,144.56,144.54,1.73141323]
[1724327434641,6.1688,144.56,144.55,1.73141323]
[1724327434843,16.4174,144.57,144.56,6.9175]
[1724327435134,16.4174,144.57,144.56,21.73141323]
[1724327436842,83.23164372,144.59,144.56,21.73141323]
[1724327437026,83.23164372,144.59,144.57,1.73141323]
[1724327437361,83.23164372,144.59,144.58,1.73141323]
[1724327437516,83.23164372,144.59,144.58,1.73102259]
[1724327437720,83.23164372,144.59,144.58,3.46204486]
[1724327441243,83.23164372,144.59,144.58,3.46182708]
[1724327442322,14.23664372,144.59,144.58,23.46182708]
[1724327442521,14.23664372,144.59,144.58,97.69183694]
[1724327442734,3.79461111,144.59,144.58,151.55044258]
[1724327443053,3.79461111,144.59,144.58,101.37953775]
[1724327443219,3.79461111,144.59,144.58,96.30895301]
[1724327443423,3.79461111,144.59,144.58,96.05797301]
[1724327444348,3.79461111,144.59,144.58,96.05781533]
[1724327444941,3.79461111,144.59,144.58,102.76119473]
[1724327445338,3.79461111,144.59,144.58,97.69158359]
[1724327445722,3.79461111,144.59,144.58,96.30879533]
[1724327446949,3.79461111,144.59,144.58,97.69159883]
[1724327447454,3.79461111,144.59,144.58,96.30879533]
[1724327447835,3.79461111,144.59,144.58,97.69159629]
[1724327448158,3.79461111,144.59,144.58,96.30879533]
[1724327450938,0.8483539,144.62,144.61,20.0]
[1724327451139,0.8483539,144.62,144.61,97.28162681]
[1724327451450,0.8483539,144.62,144.61,97.15613681]
[1724327451659,0.8483539,144.62,144.61,97.03064681]
[1724327452152,0.8483539,144.62,144.61,97.28162681]
[1724327453681,0.8483539,144.62,144.61,95.55098]
[1724327453841,0.8483539,144.62,144.61,97.28132376]
[1724327455242,0.8483539,144.62,144.61,86.98132376]
[1724327455585,0.8483539,144.62,144.61,85.25098]
[1724327455945,0.8483539,144.62,144.61,86.98125456]
[1724327456353,0.8483539,144.62,144.61,85.25098]
[1724327457395,0.8483539,144.62,144.61,95.55098]
[1724327457560,0.8483539,144.62,144.61,85.25098]
[1724327466585,0.8483539,144.62,144.61,86.63367271]
[1724327466894,0.8483539,144.62,144.61,93.45354529]
[1724327468887,0.8483539,144.62,144.61,93.20256529]
[1724327469796,0.8483539,144.62,144.61,48.20256529]
[1724327471394,0.8483539,144.62,144.61,93.20256529]
[1724327472997,0.8483539,144.62,144.61,73.20256529]
[1724327473169,0.8483539,144.62,144.61,48.20256529]
[1724327473572,0.8483539,144.62,144.61,93.20256529]
[1724327474690,0.8483539,144.62,144.61,93.45354529]
[1724327475179,0.8483539,144.62,144.61,93.20256529]
[1724327475502,0.8483539,144.62,144.61,94.9329373]
[1724327475672,0.8483539,144.62,144.61,48.20256529]
[1724327476185,0.8483539,144.62,144.61,28.20256529]
[1724327476391,16.3855539,144.62,144.57,20.0]
[1724327476706,16.3855539,144.62,144.58,1.7306774]
[1724327476872,16.3855539,144.62,144.57,20.0]
[1724327476873,16.3855539,144.62,144.59,20.0]
[1724327477788,16.3855539,144.62,144.6,45.0]
[1724327478123,16.3855539,144.62,144.61,20.0]
[1724327478404,16.3855539,144.62,144.61,40.0]
[1724327479387,16.3855539,144.62,144.61,41.73055201]
[1724327479593,0.8483539,144.62,144.61,41.73055201]
[1724327479795,0.8483539,144.62,144.61,97.28153201]
[1724327482079,0.8483539,144.62,144.61,95.55098]
[1724327482286,0.8483539,144.62,144.61,97.28134436]
[1724327485027,0.8483539,144.62,144.61,102.35018958]
[1724327486897,0.8483539,144.62,144.61,132.35018958]
[1724327488816,0.8483539,144.62,144.61,76.80122324]
[1724327489916,0.8483539,144.62,144.61,85.37102387]
[1724327490103,0.8483539,144.62,144.61,87.22673857]
[1724327490304,0.8483539,144.62,144.61,102.35222857]
[1724327492224,0.8483539,144.62,144.61,102.35218926]
[1724327492525,0.8483539,144.62,144.61,95.55098]
[1724327492696,0.8483539,144.62,144.61,102.35564612]
[1724327495536,0.8483539,144.62,144.61,132.35564612]
[1724327495823,0.8483539,144.62,144.61,133.73819718]
[1724327497316,18.19426932,144.64,144.63,20.0]
[1724327497523,18.19426932,144.64,144.63,111.91136798]
[1724327497702,18.19426932,144.64,144.63,128.49748628]
[1724327498102,18.19426932,144.64,144.63,158.49748628]
[1724327498303,10.37386932,144.64,144.63,177.93518531]
[1724327498529,6.46366932,144.64,144.63,177.93518531]
[1724327498998,6.46366932,144.64,144.63,176.20308569]
[1724327499322,95.10452053,144.75,144.69,20.0]
[1724327499525,95.10452053,144.75,144.69,97.28060315]
[1724327500816,95.10452053,144.75,144.69,102.34730758]
[1724327501023,95.10452053,144.75,144.69,116.98060315]
[1724327501224,95.10452053,144.75,144.69,71.72962315]
[1724327502619,95.10452053,144.75,144.69,116.98060315]
[1724327504811,95.10452053,144.75,144.69,127.28060315]
[1724327506610,95.10452053,144.75,144.69,127.28032478]
[1724327508801,95.10452053,144.75,144.69,127.28025215]
[1724327509029,95.10452053,144.75,144.69,134.70162726]
[1724327509234,95.10452053,144.75,144.69,136.43082456]
[1724327510130,95.10452053,144.75,144.69,106.43082456]
[1724327510816,95.10452053,144.75,144.69,147.63082456]
[1724327512114,22.15189493,144.7,144.69,147.63082456]
[1724327512540,22.15189493,144.7,144.69,106.43072999]
[1724327512744,22.15189493,144.7,144.69,136.43072999]
[1724327512946,22.15189493,144.7,144.69,127.28008273]
[1724327515746,22.15189493,144.7,144.69,137.81256365]
[1724327517846,22.15189493,144.7,144.69,198.45072999]
[1724327518051,22.15189493,144.7,144.69,177.63072999]
[1724327518645,22.15189493,144.7,144.69,143.86620103]
[1724327519231,22.15189493,144.7,144.69,154.16620103]
[1724327519551,22.15189493,144.7,144.69,185.06619129]
[1724327519719,22.15189493,144.7,144.69,143.86619129]
[1724327520525,22.15189493,144.7,144.69,133.56619129]
[1724327520729,22.15189493,144.7,144.69,142.1370983]
[1724327521044,22.15189493,144.7,144.69,96.8861183]
[1724327521238,22.15189493,144.7,144.69,57.43547104]
[1724327521437,22.15189493,144.7,144.69,68.73455508]
[1724327521954,22.15189493,144.7,144.69,70.46371952]
[1724327522245,22.15189493,144.7,144.69,70.46371689]
[1724327522631,22.15189493,144.7,144.69,90.58920689]
[1724327522835,22.15189493,144.7,144.69,134.33275456]
[1724327523452,22.15189493,144.7,144.69,135.71458785]
[1724327523627,22.15189493,144.7,144.69,146.01458785]
[1724327523829,95.10452053,144.75,144.74,20.0]
[1724327524149,95.10452053,144.75,144.74,125.55098]
[1724327525856,95.10452053,144.75,144.74,145.89525401]
[1724327526458,40.36152013,144.75,144.74,145.89525401]
[1724327527651,18.20952013,144.75,144.74,145.89525401]
[1724327527960,18.20952013,144.75,144.74,164.98683163]
[1724327528184,0.8483539,144.77,144.76,30.3]
[1724327528322,0.8483539,144.77,144.76,113.35897075]
[1724327528522,0.8483539,144.77,144.76,111.97798837]
[1724327529063,0.8483539,144.77,144.76,91.15798837]
[1724327529856,0.8483539,144.77,144.76,80.85798837]
[1724327530054,0.8483539,144.77,144.76,91.15798837]
[1724327530349,0.8483539,144.77,144.76,137.53906409]
[1724327530536,0.8483539,144.77,144.76,136.15798837]
[1724327532034,0.8483539,144.77,144.76,125.85798837]
[1724327532349,0.8483539,144.77,144.76,136.15798837]
[1724327534039,0.8483539,144.77,144.76,50.0]
[1724327535862,0.8483539,144.77,144.76,81.98821692]
[1724327536362,0.8483539,144.77,144.76,82.33519155]
[1724327536566,0.8483539,144.77,144.76,52.33519155]
[1724327536767,0.8483539,144.77,144.76,95.85798837]
[1724327538027,0.8483539,144.77,144.76,127.23916761]
[1724327538565,0.8483539,144.77,144.76,125.85798837]
[1724327538756,0.8483539,144.77,144.76,127.58617196]
[1724327540161,0.8483539,144.77,144.76,116.97916359]
[1724327542064,0.8483539,144.77,144.76,85.25098]
[1724327542366,0.8483539,144.77,144.76,86.9793275]
[1724327542660,0.8483539,144.77,144.76,98.96755003]
[1724327543559,0.8483539,144.77,144.76,128.96755003]
[1724327543744,0.8483539,144.77,144.76,127.58633587]
[1724327544773,0.8483539,144.77,144.76,116.9793275]
[1724327548179,0.8483539,144.77,144.76,115.25098]
[1724327548383,0.8483539,144.77,144.76,116.97922999]
[1724327550167,0.8483539,144.77,144.76,86.97922999]
[1724327550983,0.8483539,144.77,144.76,41.72824999]
[1724327551288,0.8483539,144.77,144.76,40.0]
[1724327551484,0.8483539,144.77,144.76,41.72833898]
[1724327552550,0.8483539,144.77,144.76,21.72833898]
[1724327553280,0.8483539,144.77,144.76,20.0]
[1724327553657,0.8483539,144.77,144.76,21.72833898]
[1724327554189,0.8483539,144.77,144.74,20.0]
[1724327554365,11.1483539,144.77,144.74,20.0]
[1724327554763,0.8483539,144.77,144.76,20.0]
[1724327555663,0.8483539,144.77,144.75,1.72877599]
[1724327555863,0.8483539,144.77,144.74,20.0]
[1724327556063,0.8483539,144.77,144.75,20.0]
[1724327560100,0.8483539,144.77,144.76,20.0]
[1724327560395,0.8483539,144.77,144.76,1.72863092]
[1724327562512,0.8483539,144.77,144.75,40.0]
[1724327563074,0.8483539,144.77,144.76,1.7286704]
[1724327564089,0.8483539,144.77,144.76,3.11012767]
[1724327564300,0.8483539,144.77,144.76,48.11006125]
[1724327564480,0.8483539,144.77,144.76,68.36104125]
[1724327565002,0.8483539,144.77,144.76,66.97958398]
[1724327565498,0.8483539,144.77,144.76,68.36089287]
[1724327565722,0.8483539,144.77,144.76,66.97958398]
[1724327566686,0.8483539,144.77,144.76,66.72860398]
[1724327567001,0.8483539,144.77,144.76,21.72860398]
[1724327567592,0.8483539,144.77,144.76,21.72860578]
[1724327570018,0.8483539,144.77,144.76,66.85409578]
[1724327573419,0.8483539,144.77,144.76,21.72860578]
[1724327573905,0.8483539,144.77,144.76,77.39786648]
[1724327574210,0.8483539,144.77,144.76,76.01659191]
[1724327574803,0.8483539,144.77,144.76,77.39776789]
[1724327575008,0.8483539,144.77,144.76,76.01659191]
[1724327575306,0.8483539,144.77,144.76,94.91099191]
[1724327575483,31.1823,144.92,144.84,20.0]
[1724327575683,31.1823,144.92,144.84,52.27958578]
[1724327575903,31.1823,144.92,144.84,61.31659191]
[1724327575904,34.02477174,144.85,144.84,61.31659191]
[1724327576510,34.02477174,144.85,144.84,71.97958578]
[1724327577206,34.02477174,144.85,144.84,52.27958578]
[1724327577714,34.02477174,144.85,144.84,97.27958578]
[1724327578103,34.02477174,144.85,144.84,131.2524563]
[1724327578302,34.02477174,144.85,144.84,127.27958578]
[1724327578701,34.02477174,144.85,144.84,116.97958578]
[1724327579127,19.78477174,144.85,144.84,128.2074886]
[1724327579291,19.78477174,144.85,144.84,98.2074886]
[1724327579491,12.66477174,144.85,144.84,98.2074886]
[1724327580316,12.66477174,144.85,144.84,53.2074886]
[1724327580746,12.66477174,144.85,144.84,21.72751262]
[1724327580905,12.66477174,144.85,144.82,20.0]
[1724327581106,29.22987174,144.85,144.83,1.727766]
[1724327581413,29.22987174,144.85,144.82,20.0]
[1724327581621,29.22987174,144.85,144.82,31.22790282]
[1724327581803,29.22987174,144.85,144.83,1.72773203]
[1724327581999,29.22987174,144.85,144.81,30.0]
[1724327582327,29.22987174,144.85,144.82,31.22790282]
[1724327583118,12.66477174,144.85,144.84,20.0]
[1724327583923,12.66477174,144.85,144.82,40.0]
[1724327584941,12.66477174,144.85,144.76,7.89901088]
[1724327584942,22.96477174,144.85,144.8,20.0]
[1724327585434,10.3,144.83,144.78,21.72803606]
[1724327585625,10.3,144.83,144.79,1.72803606]
[1724327586219,10.3,144.83,144.78,20.0]
[1724327586840,10.3,144.81,144.76,31.22790282]